bitfinex/quotes_ETHUSD_20240710
["timestamp","ask_amount","ask_price","bid_price","bid_amount"]
[1720570921712,0.06434118,3053.2,3051.2,0.005]
[1720570921913,0.55,3053.1,3051.2,3.2823]
[1720570922223,0.06434118,3053.0,3051.3,3.6055]
[1720570922423,0.55,3052.9,3051.3,3.6055]
[1720570922622,0.06434118,3052.8,3051.3,3.6055]
[1720570922957,0.40581838,3052.8,3051.3,3.6055]
[1720570923262,0.06434118,3052.7,3051.4,0.688779]
[1720570923945,0.06434118,3052.7,3051.2,0.005]
[1720570924324,2.3703,3052.6,3051.2,0.005]
[1720570924543,0.61434118,3052.5,3051.2,0.005]
[1720570924845,3.449,3052.4,3051.2,0.005]
[1720570925084,0.61434118,3052.3,3051.2,0.005]
[1720570925220,0.4706753,3052.2,3051.2,0.005]
[1720570925419,0.55,3052.1,3051.2,0.005]
[1720570925820,0.4706753,3052.2,3051.2,0.005]
[1720570925821,0.40633412,3052.2,3051.2,0.005]
[1720570926346,3.0,3052.5,3051.2,0.005]
[1720570926547,2.3703,3052.6,3051.3,0.06553862]
[1720570926719,0.06434118,3052.5,3051.2,0.005]
[1720570926924,2.3703,3052.6,3051.2,0.333255]
[1720570926925,0.24346412,3052.4,3051.2,0.333255]
[1720570927322,0.06434118,3052.3,3051.2,0.333255]
[1720570927524,0.06434118,3052.2,3051.2,0.005]
[1720570927723,0.12101425,3052.2,3051.2,0.005]
[1720570927917,0.55,3052.1,3051.2,0.005]
[1720570928123,2.2803,3051.9,3051.2,0.005]
[1720570928327,0.84237118,3051.8,3051.2,0.005]
[1720570928619,3.77803,3051.8,3051.2,0.005]
[1720570929225,0.06434118,3051.7,3051.2,0.005]
[1720570931053,3.77803,3051.8,3051.2,0.005]
[1720570931557,0.06434118,3051.7,3051.2,0.005]
[1720570931756,0.93423712,3051.6,3051.2,0.005]
[1720570931943,0.06434118,3051.5,3051.2,0.005]
[1720570934652,3.22803,3051.8,3051.2,0.005]
[1720570934653,0.22803,3051.8,3051.2,0.005]
[1720570934858,0.05667307,3052.2,3051.2,0.005]
[1720570935092,0.05667307,3052.2,3050.7,3.27792]
[1720570935372,0.05667307,3052.2,3050.8,0.06554319]
[1720570935535,7.46,3052.7,3051.0,3.624]
[1720570935724,0.3414772,3052.8,3051.2,2.94347036]
[1720570935931,0.3414772,3052.8,3051.3,2.85255262]
[1720570936263,0.40581838,3052.8,3051.2,5.53683]
[1720570936775,0.06434118,3052.7,3051.2,2.2595]
[1720570937059,0.06434118,3052.7,3050.5,1.36794072]
[1720570937060,3.84104118,3052.7,3050.5,2.2595]
[1720570937486,0.3277,3052.5,3050.5,2.2595]
[1720570937628,0.06434118,3052.4,3050.5,2.2595]
[1720570937968,0.06434118,3052.4,3049.9,0.68397036]
[1720570937969,6.449,3052.0,3049.9,0.68397036]
[1720570938266,6.449,3052.0,3049.7,2.02197071]
[1720570938267,3.449,3051.7,3049.7,0.99601517]
[1720570938477,0.06434118,3051.6,3049.7,0.99601517]
[1720570938632,0.55,3051.5,3049.7,0.99601517]
[1720570938953,0.77634561,3051.4,3049.7,0.99601517]
[1720570939126,0.55,3051.3,3049.7,0.99601517]
[1720570939459,0.55,3051.3,3049.8,0.06556805]
[1720570939658,0.55,3051.3,3049.8,3.34437805]
[1720570939865,0.05670315,3051.6,3049.8,3.34437805]
[1720570940162,0.86210443,3051.5,3049.9,0.43403932]
[1720570940361,0.06434118,3051.4,3049.9,0.43403932]
[1720570940526,0.86210443,3051.5,3049.9,0.06556242]
[1720570940866,0.06434118,3051.4,3049.7,0.99601517]
[1720570941042,0.55,3051.3,3049.7,0.99601517]
[1720570941236,0.55,3051.3,3049.8,0.06556778]
[1720570941429,3.31210443,3051.5,3049.8,3.34444778]
[1720570941430,0.31210443,3051.5,3049.8,3.34444778]
[1720570941629,0.55,3051.4,3049.9,0.4340463]
[1720570942163,0.55,3051.5,3049.9,0.4340463]
[1720570942368,0.05670315,3051.6,3050.1,3.27853]
[1720570942531,0.05670315,3051.6,3050.3,2.3752]
[1720570942730,9.7742,3051.8,3050.6,3.27801]
[1720570942939,2.3142,3051.8,3050.7,0.0655462]
[1720570943571,2.3142,3051.8,3050.6,3.3435562]
[1720570945485,2.81764468,3052.3,3051.1,3.27748]
[1720570945788,0.34165823,3052.3,3051.2,3.67067168]
[1720570946083,2.4138,3052.9,3051.3,3.27727]
[1720570946286,0.34153568,3052.7,3051.4,0.06553366]
[1720570946444,0.34153568,3052.7,3051.4,0.43258883]
[1720570948886,0.34153568,3052.7,3051.4,0.36705517]
[1720570950051,0.34153568,3052.7,3051.4,0.43258871]
[1720570950250,0.34153568,3052.7,3051.6,3.27691]
[1720570950483,0.34153568,3052.7,3051.7,0.655389]
[1720570950895,2.4138,3052.9,3051.7,0.655389]
[1720570951064,2.4138,3052.9,3051.8,0.06552513]
[1720570951264,2.4138,3052.9,3051.7,3.932229]
[1720570951773,2.4138,3052.9,3051.8,0.06552511]
[1720570952106,0.06434118,3053.4,3052.1,3.2764]
[1720570952107,2.4553,3053.4,3052.1,3.2764]
[1720570952404,9.9153,3053.9,3052.3,6.55231]
[1720570952596,0.99153,3053.8,3052.4,0.06551069]
[1720570952806,0.99153,3053.8,3052.6,3.27587]
[1720570952969,0.99153,3053.8,3052.7,0.66172749]
[1720570955010,0.05664377,3054.2,3052.9,3.27556]
[1720570955307,7.46,3055.0,3053.6,3.27479]
[1720570955612,0.38429284,3055.4,3053.7,0.06548273]
[1720570955772,0.34146612,3055.0,3053.7,0.06548273]
[1720570956511,0.34146612,3055.0,3053.5,0.06548271]
[1720570956680,0.34146612,3055.0,3053.1,2.3773]
[1720570956681,2.50884118,3054.9,3053.1,5.65259]
[1720570957004,5.95784118,3054.9,3053.1,2.3773]
[1720570957311,3.0,3054.8,3053.1,5.65257]
[1720570957507,3.0,3054.8,3053.1,2.3773]
[1720570957508,0.06434118,3054.7,3053.1,2.3773]
[1720570957806,0.06434118,3054.7,3052.4,3.624]
[1720570957807,0.30643412,3054.6,3052.7,3.27578]
[1720570958006,0.06434118,3054.5,3052.7,3.27578]
[1720570958214,0.55,3054.4,3052.8,3.27566]
[1720570958507,0.06434118,3054.3,3052.9,0.327566]
[1720570960004,0.61434118,3054.4,3052.9,0.327566]
[1720570960210,0.30643412,3054.6,3053.0,3.34094875]
[1720570960510,0.30643412,3054.6,3053.1,3.27528]
[1720570960715,0.3707753,3054.6,3053.2,0.655073]
[1720570961007,0.3707753,3054.6,3052.9,3.603056]
[1720570961384,0.3707753,3054.6,3052.9,0.327566]
[1720570961583,0.3707753,3054.6,3052.7,3.27573]
[1720570962015,0.55,3054.5,3052.7,3.27573]
[1720570962310,0.06434118,3054.4,3052.8,3.27566]
[1720570962669,0.06434118,3054.4,3052.6,5.71608]
[1720570962873,0.06434118,3054.4,3052.7,0.24402]
[1720570963108,0.06434118,3054.4,3052.8,3.27568]
[1720570965244,0.06434118,3054.4,3052.7,0.24402]
[1720570965413,0.06434118,3054.4,3052.7,3.5198]
[1720570965736,0.06434118,3054.4,3052.8,0.596]
[1720570966102,0.06434118,3054.4,3052.7,3.51979]
[1720570967406,0.06434118,3054.4,3052.8,3.27566]
[1720570969106,0.55,3054.5,3052.9,3.27548]
[1720570969302,0.55,3054.5,3053.0,0.327548]
[1720570969543,0.55,3054.5,3053.0,3.602988]
[1720570969908,0.30643412,3054.6,3053.2,3.27523]
[1720570970138,0.30643412,3054.6,3053.4,3.27495]
[1720570970351,0.30643412,3054.6,3053.3,3.27508]
[1720570970352,0.3707753,3054.6,3053.3,3.27508]
[1720570970551,0.3707753,3054.6,3053.0,0.327548]
[1720570970850,0.06434118,3054.6,3052.7,0.24402]
[1720570971019,2.4341,3054.5,3052.7,3.51977]
[1720570971219,0.06434118,3054.4,3052.7,3.51977]
[1720570971421,0.28399699,3054.3,3052.8,0.595997]
[1720570971614,0.06434118,3054.2,3052.8,3.871667]
[1720570971863,0.06434118,3054.2,3052.8,0.595997]
[1720570973256,0.06434118,3054.2,3052.8,3.871657]
[1720570973444,0.06434118,3054.2,3052.9,0.7391387]
[1720570974427,0.28399699,3054.3,3052.9,0.7391387]
[1720570975592,0.06434118,3054.2,3052.9,0.7391387]
[1720570976681,0.06434118,3054.2,3052.9,4.0146987]
[1720570977444,0.06434118,3054.2,3052.9,0.7391387]
[1720570977859,0.28399699,3054.3,3053.0,3.73652657]
[1720570979003,0.28399699,3054.3,3053.0,7.01192657]
[1720570979906,0.3415287,3054.5,3053.7,3.2747]
[1720570980076,1.5,3056.7,3053.1,0.06549367]
[1720570980077,3.7178,3055.4,3054.1,3.2742]
[1720570980281,3.7178,3055.4,3053.8,0.06547265]
[1720570980282,0.06434118,3055.3,3053.8,3.27459]
[1720570980899,0.06434118,3055.3,3053.6,3.443]
[1720570981202,0.06434118,3055.3,3053.6,3.7873]
[1720570981203,0.29035734,3055.2,3053.6,3.7873]
[1720570981399,2.2738,3055.0,3053.6,3.7873]
[1720570981571,0.06434118,3054.9,3053.3,3.2751]
[1720570981773,0.06434118,3054.9,3053.5,3.27491]
[1720570982224,2.2738,3055.0,3053.1,3.443]
[1720570982435,2.2738,3055.0,3053.8,3.27459]
[1720570982585,2.2738,3055.0,3054.1,3.27427]
[1720570982791,2.2738,3055.0,3054.2,0.06547276]
[1720570983118,2.2738,3055.0,3053.9,3.27448]
[1720570983119,2.2738,3055.0,3054.0,3.27437]
[1720570983339,2.2738,3055.0,3054.1,0.654885]
[1720570983538,2.2738,3055.0,3053.6,3.443]
[1720570983539,0.06434118,3054.9,3053.6,3.443]
[1720570984690,2.2738,3055.0,3053.8,3.2746]
[1720570984901,2.2738,3055.0,3053.9,3.27442]
[1720570985100,2.2738,3055.0,3054.0,0.72692549]
[1720570985644,2.2738,3055.0,3054.1,3.27426]
[1720570985856,2.2738,3055.0,3054.0,0.66144959]
[1720570986201,2.2738,3055.0,3054.1,3.27421]
[1720570986943,2.2738,3055.0,3053.9,3.27442]
[1720570987145,2.2738,3055.0,3053.6,6.71775]
[1720570987440,0.06434118,3054.9,3053.6,3.443]
[1720570987621,0.29172118,3054.9,3053.6,7.389601]
[1720570987814,3.29172118,3054.9,3053.6,10.664351]
[1720570988141,3.22738,3054.9,3053.6,10.664351]
[1720570988304,2.2738,3055.0,3053.7,1.13191658]
[1720570988613,2.2738,3055.0,3054.0,6.71731]
[1720570989199,2.2738,3055.0,3054.0,3.443]
[1720570989408,2.2738,3055.0,3054.1,0.06547268]
[1720570989642,2.2738,3055.0,3054.2,3.27416]
[1720570989853,2.2738,3055.0,3054.3,0.06546899]
[1720570990007,0.34143221,3055.4,3054.4,0.3339629]
[1720570990339,0.34143221,3055.4,3054.5,0.06546568]
[1720570990929,0.34143221,3055.4,3054.4,0.3339629]
[1720570991135,2.3756,3055.5,3054.2,3.27417]
[1720570991335,2.3756,3055.5,3054.0,4.12482552]
[1720570991336,2.3756,3055.5,3054.0,3.443]
[1720570991540,0.06434118,3055.4,3054.0,3.443]
[1720570991709,0.06434118,3055.4,3054.0,6.71737]
[1720570992703,0.06434118,3055.4,3054.0,3.443]
[1720570992919,2.2622,3055.2,3053.6,0.671801]
[1720570993229,0.06434118,3055.1,3053.6,0.671801]
[1720570994057,5.32654118,3055.2,3053.6,3.946611]
[1720570994277,0.55,3055.1,3053.6,3.946611]
[1720570995137,2.2622,3055.2,3053.8,3.27458]
[1720570995343,2.2622,3055.2,3054.0,3.443]
[1720570995551,2.2622,3055.2,3054.1,3.33969896]
[1720570996256,2.2622,3055.2,3054.1,3.27423]
[1720570996595,2.2622,3055.2,3054.0,6.71733]
[1720570996866,2.2622,3055.2,3054.1,1.91333907]
[1720570997158,2.2622,3055.2,3054.1,0.77354658]
[1720570998538,2.2622,3055.2,3054.1,4.04780658]
[1720570999164,2.2622,3055.2,3054.1,4.11327572]
[1720570999332,2.2622,3055.2,3054.3,3.27396]
[1720570999528,2.2622,3055.2,3054.4,3.3394135]
[1720570999728,2.2622,3055.2,3054.4,3.27395]
[1720571000379,3.34141079,3055.9,3054.5,6.78231355]
[1720571000380,2.401,3055.8,3054.5,6.78231355]
[1720571000580,2.401,3055.8,3054.7,3.27364]
[1720571000750,2.401,3055.8,3054.8,0.327364]
[1720571001079,2.401,3055.8,3054.5,3.443]
[1720571002065,2.401,3055.8,3054.5,3.50846331]
[1720571002647,2.401,3055.8,3054.5,3.443]
[1720571003685,2.401,3055.8,3053.9,0.3340061]
[1720571003849,2.3718,3055.6,3053.9,3.7770061]
[1720571004055,2.3718,3055.4,3053.9,0.3340061]
[1720571004257,2.3718,3055.2,3053.6,3.27474]
[1720571004458,0.06434118,3055.1,3053.6,3.27474]
[1720571004684,0.06434118,3055.1,3053.4,6.71796]
[1720571004992,0.06434118,3055.1,3053.4,3.443]
[1720571004993,2.4102,3055.0,3053.4,3.443]
[1720571005288,0.06434118,3054.9,3053.5,0.3443]
[1720571006567,2.4102,3055.0,3053.5,0.3443]
[1720571006767,2.4102,3055.0,3053.5,3.61922]
[1720571006971,2.4102,3055.0,3053.6,1.033717]
[1720571007168,2.4102,3055.0,3053.9,3.443]
[1720571007359,2.4102,3055.0,3054.0,0.06547506]
[1720571007560,2.4102,3055.0,3054.4,3.443]
[1720571007969,2.4561,3055.4,3054.4,3.443]
[1720571008169,2.4561,3055.4,3054.6,3.27365]
[1720571008401,2.4561,3055.4,3054.5,3.945547]
[1720571008893,2.4561,3055.4,3054.5,0.671697]
[1720571009104,2.4561,3055.4,3054.1,3.27427]
[1720571009308,2.4561,3055.4,3054.2,3.0]
[1720571010494,2.4561,3055.4,3054.5,3.27384]
[1720571010703,2.4561,3055.4,3054.6,0.06546127]
[1720571010867,2.4561,3055.4,3054.7,3.60754013]
[1720571011187,0.34142857,3056.0,3054.8,0.06545737]
[1720571011389,0.34142857,3056.0,3054.7,3.60748013]
[1720571011390,2.2844,3055.9,3054.9,3.443]
[1720571011565,2.34874118,3055.9,3054.2,6.443]
[1720571011761,2.34874118,3055.9,3054.2,3.443]
[1720571011967,2.2844,3055.7,3053.6,4.308477]
[1720571012167,2.2844,3055.5,3053.7,6.71765]
[1720571012415,2.34874118,3055.4,3053.7,3.443]
[1720571012578,2.2844,3055.3,3053.7,3.443]
[1720571012784,2.2844,3055.1,3053.7,3.443]
[1720571012978,2.2844,3054.9,3053.7,3.443]
[1720571013166,2.2844,3054.7,3053.2,3.443]
[1720571013364,2.2844,3054.5,3053.2,3.443]
[1720571013594,0.06434118,3054.4,3053.2,3.443]
[1720571014363,2.2844,3054.5,3053.3,0.06548978]
[1720571014595,2.2844,3054.5,3053.3,3.27514]
[1720571014872,2.2844,3054.5,3053.4,3.27494]
[1720571015071,2.2844,3054.5,3053.5,3.929928]
[1720571015907,2.2844,3054.5,3053.5,0.655008]
[1720571017829,2.2844,3054.5,3053.5,3.929928]
[1720571018621,2.2844,3054.5,3053.5,7.204768]
[1720571019137,7.46,3055.0,3053.9,3.27449]
[1720571019345,7.46,3055.0,3054.0,0.39292244]
[1720571019741,7.46,3055.0,3054.0,3.601779]
[1720571020663,7.46,3055.0,3054.0,0.327449]
[1720571020965,7.46,3055.0,3053.7,3.443]
[1720571021171,7.46,3055.0,3053.8,3.27453]
[1720571021462,7.46,3055.0,3053.8,6.54906]
[1720571022178,7.46,3055.0,3053.8,3.27453]
[1720571023157,7.46,3055.0,3053.8,6.54907]
[1720571023362,7.46,3055.0,3053.9,0.999207]
[1720571023733,7.46,3055.0,3054.0,3.27435]
[1720571024231,7.46,3055.0,3053.9,4.273627]
[1720571024567,2.4802,3055.1,3053.9,4.273627]
[1720571025763,2.4802,3055.1,3053.9,7.548057]
[1720571025970,2.4802,3055.1,3054.0,0.7548057]
[1720571026267,2.4802,3055.1,3054.1,3.27426]
[1720571027367,2.4802,3055.1,3054.0,0.7548057]
[1720571027562,2.4802,3055.1,3053.9,3.27442]
[1720571028052,2.4802,3055.1,3053.9,6.54885]
[1720571028232,2.4802,3055.1,3053.9,3.27442]
[1720571028428,2.4802,3055.1,3054.1,3.27428]
[1720571029329,2.4802,3055.1,3054.1,6.5485]
[1720571029547,2.4802,3055.1,3054.2,0.65485]
[1720571030331,2.4802,3055.1,3054.1,3.27422]
[1720571030566,2.4802,3055.1,3054.1,6.54845]
[1720571031060,2.4802,3055.1,3054.1,3.27422]
[1720571031772,2.4802,3055.1,3054.1,6.54844]
[1720571032064,2.4802,3055.1,3054.2,3.27416]
[1720571032271,2.4802,3055.1,3054.3,0.654838]
[1720571032864,2.4802,3055.1,3054.2,3.27416]
[1720571033743,2.4802,3055.1,3054.3,0.0654699]
[1720571034585,2.4802,3055.1,3054.3,3.3395299]
[1720571034782,2.4802,3055.1,3054.1,3.27422]
[1720571035183,2.4802,3055.1,3054.1,6.54842]
[1720571035490,2.4802,3055.1,3054.2,0.654842]
[1720571035704,2.4802,3055.1,3054.0,3.27439]
[1720571036047,2.4802,3055.1,3053.8,3.443]
[1720571036290,2.4802,3055.1,3053.8,6.71755]
[1720571036590,2.4802,3055.1,3053.8,3.27454]
[1720571036789,2.4802,3055.1,3053.9,2.909454]
[1720571038679,0.06434118,3055.0,3053.5,3.237008]
[1720571038876,0.06434118,3055.0,3053.5,5.8569]
[1720571039084,2.4707,3054.9,3053.5,2.582]
[1720571039406,3.7774,3055.3,3053.5,2.582]
[1720571039407,2.4707,3054.7,3053.5,2.582]
[1720571039554,0.25350412,3054.6,3053.5,2.582]
[1720571039888,2.53504118,3054.5,3053.5,2.582]
[1720571040078,2.53504118,3054.5,3052.8,3.27561]
[1720571040079,2.53504118,3054.5,3053.1,5.85735]
[1720571041804,2.53504118,3054.5,3053.1,2.582]
[1720571042009,2.53504118,3054.5,3053.1,5.8573]
[1720571042957,2.53504118,3054.5,3053.2,3.27524]
[1720571043157,2.53504118,3054.5,3053.3,0.585724]
[1720571045884,2.33044118,3054.3,3052.7,0.2582]
[1720571046063,2.33044118,3054.3,3052.6,2.582]
[1720571046064,2.836,3054.2,3052.6,2.582]
[1720571046265,2.286,3054.0,3052.6,2.582]
[1720571046575,0.06434118,3053.9,3052.6,2.582]
[1720571046764,2.3938,3053.8,3052.6,2.582]
[1720571046964,0.55,3054.2,3052.0,2.582]
[1720571046965,2.3938,3053.6,3052.0,2.582]
[1720571047173,2.3938,3053.4,3051.6,2.582]
[1720571047402,2.45814118,3053.3,3051.6,9.13575]
[1720571047702,0.06434118,3053.2,3051.7,3.27685]
[1720571048017,0.06434118,3053.2,3052.0,2.582]
[1720571048191,2.45814118,3053.3,3052.0,2.582]
[1720571049401,0.06434118,3053.2,3052.0,2.582]
[1720571051966,2.9114,3053.1,3051.6,2.582]
[1720571052166,2.3614,3052.9,3051.6,2.582]
[1720571052798,2.42574118,3052.9,3051.6,2.582]
[1720571053099,3.0391,3052.8,3051.6,2.582]
[1720571053689,0.06434118,3052.7,3051.6,2.582]
[1720571054780,2.4891,3052.8,3051.6,2.582]
[1720571054974,2.4891,3052.8,3051.7,0.32372589]
[1720571055311,2.4891,3052.8,3052.0,2.582]
[1720571056620,2.4891,3052.8,3051.7,0.2582]
[1720571056819,2.4891,3052.8,3051.7,3.53503]
[1720571057116,2.4891,3052.8,3051.8,0.611703]
[1720571057280,2.4891,3052.8,3051.9,0.06552084]
[1720571058092,2.4891,3052.8,3051.8,3.888413]
[1720571058292,2.4891,3052.8,3052.1,2.582]
[1720571058942,2.4891,3052.8,3052.2,3.27631]
[1720571059219,2.4891,3052.8,3052.3,0.585831]
[1720571059998,2.3723,3053.4,3052.3,0.585831]
[1720571060211,2.3723,3053.4,3052.6,3.27581]
[1720571061393,2.3723,3053.4,3052.5,2.582]
[1720571061597,2.3723,3053.4,3052.6,0.2582]
[1720571064230,2.3723,3053.4,3052.5,2.582]
[1720571064231,0.06434118,3053.3,3052.5,2.582]
[1720571064402,0.06434118,3053.3,3052.0,3.27646]
[1720571064403,2.4791,3053.2,3051.8,0.611703]
[1720571064602,2.4791,3053.0,3051.7,2.582]
[1720571064924,0.06434118,3052.9,3051.7,2.582]
[1720571065091,2.4791,3053.0,3051.7,2.582]
[1720571065289,2.4791,3053.0,3052.1,2.582]
[1720571066200,2.4791,3053.0,3052.1,2.64751839]
[1720571066721,2.4791,3053.0,3052.1,2.582]
[1720571068958,0.06434118,3052.9,3052.1,2.582]
[1720571069239,2.4791,3053.0,3052.1,2.582]
[1720571069443,0.24791,3052.9,3052.1,2.582]
[1720571070577,0.31225118,3052.9,3052.1,2.582]
[1720571071622,0.24791,3052.9,3052.1,2.582]
[1720571071849,0.24791,3052.9,3051.7,2.582]
[1720571072000,2.4791,3053.0,3051.7,2.582]
[1720571072206,2.4791,3053.0,3051.7,5.85884]
[1720571072443,2.4791,3053.0,3051.7,3.27684]
[1720571072608,2.4791,3053.0,3052.0,2.582]
[1720571076025,2.4791,3053.0,3052.4,2.582]
[1720571076201,2.4791,3053.0,3052.5,0.2582]
[1720571080546,2.4105,3053.6,3052.5,0.2582]
[1720571087133,2.3663,3053.4,3052.5,0.2582]
[1720571087454,0.05664595,3053.7,3051.9,2.582]
[1720571087455,2.3663,3053.2,3051.9,2.582]
[1720571087629,3.449,3053.6,3051.9,2.582]
[1720571087630,2.3663,3053.0,3051.9,2.582]
[1720571088558,0.06434118,3052.9,3051.9,2.582]
[1720571089072,0.06434118,3052.8,3051.9,2.582]
[1720571089350,0.06434118,3052.8,3051.3,3.27728]
[1720571089351,0.06434118,3052.8,3051.5,2.582]
[1720571089529,2.3195,3052.9,3051.9,2.582]
[1720571096796,0.05665498,3052.8,3051.9,2.582]
[1720571098125,2.2743,3052.7,3051.9,2.582]
[1720571098329,2.2743,3052.5,3050.9,2.582]
[1720571098466,4.56645754,3052.6,3050.9,2.582]
[1720571098467,2.2743,3052.3,3050.9,2.582]
[1720571098667,2.2743,3052.1,3050.9,2.582]
[1720571099703,2.2743,3051.9,3050.0,3.14136959]
[1720571100016,4.08093437,3052.0,3050.0,3.14136959]
[1720571100017,2.2743,3051.7,3050.3,2.582]
[1720571100218,0.06434118,3051.6,3050.3,2.582]
[1720571101564,2.4808,3051.5,3050.3,2.582]
[1720571101825,2.4808,3051.3,3049.8,2.582]
[1720571101965,3.999,3051.6,3049.8,2.582]
[1720571101966,2.4808,3051.1,3049.8,2.582]
[1720571102165,2.4808,3050.9,3049.8,2.582]
[1720571102486,2.4808,3050.9,3049.8,2.93980152]
[1720571102792,2.54514118,3050.9,3049.7,0.99601517]
[1720571102992,3.0,3050.8,3049.7,0.99601517]
[1720571103213,2.4808,3050.9,3049.7,3.57801517]
[1720571103413,2.2682,3050.6,3049.7,3.57801517]
[1720571103593,0.06434118,3050.5,3049.7,3.57801517]
[1720571104190,2.33254118,3050.6,3049.7,3.57801517]
[1720571104535,2.33254118,3050.6,3049.7,0.99601517]
[1720571104845,2.2682,3050.4,3049.7,0.99601517]
[1720571109334,0.34160337,3050.8,3050.3,2.582]
[1720571109510,0.34160337,3050.8,3050.7,2.582]
[1720571109993,0.34160337,3050.8,3050.7,2.64754806]
[1720571110190,0.34160337,3050.8,3050.7,6.51802687]
[1720571110389,2.4529,3052.1,3050.7,3.24009687]
[1720571110626,2.4529,3052.1,3051.7,2.582]
[1720571110627,0.34157861,3051.8,3051.7,2.582]
[1720571110933,2.582,3054.0,3051.7,2.582]
[1720571110934,2.4529,3052.8,3051.8,3.27671]
[1720571111088,2.4529,3052.8,3052.4,2.582]
[1720571111298,7.46,3053.4,3052.4,2.582]
[1720571111299,2.2804,3053.3,3052.4,2.582]
[1720571111612,0.34155343,3052.7,3052.4,2.582]
[1720571111924,0.34154063,3053.2,3052.4,2.8402]
[1720571112483,0.34154063,3053.2,3052.4,2.582]
[1720571112725,0.40588181,3053.2,3052.1,3.447]
[1720571113088,0.40588181,3053.2,3051.6,3.447]
[1720571113519,3.40588181,3053.2,3051.6,3.447]
[1720571113735,0.55,3053.1,3051.6,3.447]
[1720571113938,0.39558818,3053.0,3051.7,0.6724]
[1720571114268,0.45992936,3053.0,3051.6,3.447]
[1720571114544,0.55,3052.9,3051.6,3.447]
[1720571114735,0.55,3052.9,3051.6,3.7917]
[1720571115815,0.39558818,3053.0,3051.7,0.06552978]
[1720571116017,3.34154063,3053.2,3051.7,3.27684]
[1720571116435,3.40588181,3053.2,3051.7,3.27684]
[1720571116636,3.40588181,3053.2,3051.6,3.7917]
[1720571116848,0.55,3053.1,3051.6,3.7917]
[1720571117157,3.461,3052.8,3051.6,3.447]
[1720571117464,5.8007,3052.6,3051.1,3.447]
[1720571117667,2.3397,3052.3,3050.6,3.447]
[1720571117973,5.8007,3051.9,3050.2,7.47]
[1720571118257,5.8007,3051.9,3050.1,3.447]
[1720571118258,0.06434118,3051.8,3050.3,1.074852]
[1720571118410,0.06434118,3051.7,3050.1,3.447]
[1720571118615,5.8007,3051.6,3049.7,0.99601517]
[1720571118849,3.61434118,3051.5,3049.7,0.99601517]
[1720571119060,0.94150412,3051.4,3049.8,0.77221252]
[1720571119270,0.61434118,3051.3,3049.8,0.77221252]
[1720571119444,0.06434118,3051.2,3049.8,0.77221252]
[1720571120526,0.94150412,3051.4,3049.8,4.05109252]
[1720571120804,3.0,3051.5,3050.1,3.447]
[1720571120951,2.3397,3051.6,3050.2,0.06556009]
[1720571121150,2.3397,3051.6,3050.6,3.447]
[1720571121350,2.4492,3052.2,3051.1,3.447]
[1720571121575,2.4492,3052.2,3051.2,0.3447]
[1720571121778,2.4492,3052.2,3051.2,0.41024391]
[1720571122092,2.4492,3052.2,3051.2,3.68757391]
[1720571122391,2.4492,3052.9,3051.6,3.447]
[1720571122614,2.4492,3052.9,3051.7,0.41022152]
[1720571122751,2.4492,3052.9,3051.7,0.3447]
[1720571122956,0.06434118,3052.8,3051.7,0.3447]
[1720571123155,0.06434118,3052.8,3051.6,3.447]
[1720571123366,0.06434118,3052.8,3051.1,3.447]
[1720571123611,0.06434118,3052.8,3051.2,0.06553767]
[1720571123612,3.0,3052.8,3051.2,0.06553767]
[1720571123791,3.0,3052.8,3051.4,3.27715]
[1720571123975,2.4492,3052.9,3051.4,3.27715]
[1720571124173,2.4492,3052.9,3051.5,0.327715]
[1720571124174,0.54492,3052.8,3051.5,0.327715]
[1720571124503,0.06434118,3052.7,3051.2,3.27729]
[1720571125110,3.54492,3052.8,3051.2,3.27729]
[1720571125829,3.54492,3052.8,3051.3,0.06553033]
[1720571125995,3.54492,3052.8,3051.3,3.34281033]
[1720571126782,3.54492,3052.8,3051.1,3.447]
[1720571126983,0.599412,3052.7,3051.2,3.949776]
[1720571127310,0.94097929,3052.7,3051.2,3.949776]
[1720571128701,1.00532047,3052.7,3051.2,3.949776]
[1720571129497,0.94097929,3052.7,3051.2,3.949776]
[1720571130749,0.94097929,3052.7,3051.2,7.227096]
[1720571130883,0.94097929,3052.7,3051.3,1.0674096]
[1720571131085,0.94097929,3052.7,3051.4,0.06553057]
[1720571131320,0.34156729,3052.7,3051.4,3.34270057]
[1720571131529,0.34156729,3052.7,3051.6,3.447]
[1720571131681,0.34156729,3052.7,3051.7,0.06552569]
[1720571132035,0.34156729,3052.7,3051.8,3.27673]
[1720571132183,0.34156729,3052.7,3052.1,3.447]
[1720571132383,0.34156729,3052.7,3052.2,0.3447]
[1720571132626,0.34156729,3052.7,3051.6,3.447]
[1720571132985,0.06434118,3052.6,3051.6,3.447]
[1720571133185,0.06434118,3052.6,3051.3,1.0674096]
[1720571133384,0.34156729,3052.7,3051.1,6.72443]
[1720571133589,0.34156729,3052.7,3051.2,3.27737]
[1720571133832,0.34156729,3052.7,3051.3,3.34272933]
[1720571134039,0.34156729,3052.7,3051.6,6.72396]
[1720571134202,0.34156729,3052.7,3051.7,3.34231282]
[1720571134409,0.34156729,3052.7,3052.1,3.447]
[1720571135872,0.34156729,3052.7,3051.8,1.00662728]
[1720571136007,0.34156729,3052.7,3051.6,3.447]
[1720571139912,0.34156729,3052.7,3051.8,3.27669]
[1720571140218,0.34156729,3052.7,3051.9,0.06551809]
[1720571140449,0.34156729,3052.7,3051.6,6.7239]
[1720571140663,0.34156729,3052.7,3051.7,0.06552298]
[1720571140871,0.34156729,3052.7,3051.8,0.6789423]